[Event "Titled Tuesday Blitz January 10 Early 2023"]
[White "Guimaraes, Wagner Peixoto"]
[Black "Kaplan, Avi Harrison"]
[WhiteFideId "2100940"]
[BlackFideId "30934559"]
[WhiteElo "2194"]
[BlackElo "2146"]
[Result "0-1"]
[Round "08"]
[TimeControl "180+2"]
[Date "2023.01.10"]
[WhiteClock "0:00:09"]
[BlackClock "0:00:55"]

1. e4 {[%clk 0:02:50]}  Nc6 {[%clk 0:02:58]} 2. d4 {[%clk 0:02:44]}  e5 {[%clk 0:02:58]} 3. Nf3 {[%clk 0:02:45]}  exd4 {[%clk 0:02:56]} 4. Bc4 {[%clk 0:02:45]}  Nf6 {[%clk 0:02:49]} 5. O-O {[%clk 0:02:44]}  d6 {[%clk 0:02:47]} 6. Nxd4 {[%clk 0:02:36]}  Be7 {[%clk 0:02:45]} 7. Nc3 {[%clk 0:02:27]}  O-O {[%clk 0:02:44]} 8. h3 {[%clk 0:02:27]}  Ne5 {[%clk 0:02:41]} 9. Be2 {[%clk 0:02:25]}  c6 {[%clk 0:02:41]} 10. f4 {[%clk 0:02:19]}  Ng6 {[%clk 0:02:36]} 11. Be3 {[%clk 0:02:18]}  Qc7 {[%clk 0:02:29]} 12. Qd2 {[%clk 0:02:10]}  Rd8 {[%clk 0:02:28]} 13. Nf5 {[%clk 0:01:58]}  Bf8 {[%clk 0:02:21]} 14. Bd4 {[%clk 0:01:39]}  d5 {[%clk 0:02:02]} 15. Bxf6 {[%clk 0:01:36]}  gxf6 {[%clk 0:02:03]} 16. Rad1 {[%clk 0:01:04]}  Be6 {[%clk 0:01:48]} 17. Qc1 {[%clk 0:00:48]}  dxe4 {[%clk 0:01:47]} 18. g4 {[%clk 0:00:28]}  Bc5+ {[%clk 0:01:45]} 19. Kg2 {[%clk 0:00:26]}  Bxf5 {[%clk 0:01:44]} 20. gxf5 {[%clk 0:00:26]}  Nh4+ {[%clk 0:01:43]} 21. Kh1 {[%clk 0:00:27]}  Nxf5 {[%clk 0:01:42]} 22. Rg1+ {[%clk 0:00:21]}  Bxg1 {[%clk 0:01:40]} 23. Rxg1+ {[%clk 0:00:21]}  Kh8 {[%clk 0:01:40]} 24. Nxe4 {[%clk 0:00:18]}  Rg8 {[%clk 0:01:37]} 25. Nxf6 {[%clk 0:00:17]}  Rxg1+ {[%clk 0:01:33]} 26. Qxg1 {[%clk 0:00:17]}  Qxf4 {[%clk 0:01:31]} 27. Ng4 {[%clk 0:00:14]}  Ng3+ {[%clk 0:01:30]} 28. Kg2 {[%clk 0:00:13]}  Nxe2 {[%clk 0:01:30]} 29. Qc5 {[%clk 0:00:14]}  Qg3+ {[%clk 0:01:15]} 30. Kf1 {[%clk 0:00:13]}  Qf3+ {[%clk 0:01:15]} 31. Ke1 {[%clk 0:00:12]}  Re8 {[%clk 0:01:12]} 32. Kd2 {[%clk 0:00:11]}  Rd8+ {[%clk 0:01:07]} 33. Ke1 {[%clk 0:00:11]}  Nd4 {[%clk 0:00:54]} 34. Qe5+ {[%clk 0:00:10]}  f6 {[%clk 0:00:55]} 35. Nxf6 {[%clk 0:00:09]}  Nxc2# {[%clk 0:00:55]} 0-1


[Site "https://www.chess.com"]

[Event "Titled Tuesday Blitz January 10 Early 2023"]
[White "Vaglio Munoz, Jaime"]
[Black "Tania, Sachdev"]
[WhiteFideId "6500145"]
[BlackFideId "5007844"]
[WhiteElo "2174"]
[BlackElo "2389"]
[Result "0-1"]
[Round "08"]
[TimeControl "180+2"]
[Date "2023.01.10"]
[WhiteClock "0:01:48"]
[BlackClock "0:00:28"]

1. d4 {[%clk 0:02:55]}  Nf6 {[%clk 0:02:59]} 2. c4 {[%clk 0:02:52]}  e6 {[%clk 0:02:59]} 3. a3 {[%clk 0:02:51]}  b6 {[%clk 0:02:59]} 4. Nf3 {[%clk 0:02:50]}  Bb7 {[%clk 0:02:59]} 5. Bg5 {[%clk 0:02:49]}  Be7 {[%clk 0:02:59]} 6. Nbd2 {[%clk 0:02:49]}  d6 {[%clk 0:03:00]} 7. e3 {[%clk 0:02:49]}  Nbd7 {[%clk 0:03:00]} 8. Bd3 {[%clk 0:02:49]}  e5 {[%clk 0:02:56]} 9. Qc2 {[%clk 0:02:47]}  h6 {[%clk 0:02:53]} 10. Bh4 {[%clk 0:02:46]}  O-O {[%clk 0:02:44]} 11. O-O {[%clk 0:02:45]}  Re8 {[%clk 0:02:44]} 12. Bg3 {[%clk 0:02:44]}  Bf8 {[%clk 0:02:37]} 13. Bf5 {[%clk 0:02:30]}  e4 {[%clk 0:02:32]} 14. Ne1 {[%clk 0:02:29]}  g6 {[%clk 0:02:27]} 15. Bh3 {[%clk 0:02:27]}  c5 {[%clk 0:02:22]} 16. b4 {[%clk 0:02:27]}  cxd4 {[%clk 0:02:19]} 17. exd4 {[%clk 0:02:26]}  Rc8 {[%clk 0:02:20]} 18. Qb3 {[%clk 0:02:23]}  b5 {[%clk 0:02:08]} 19. c5 {[%clk 0:02:19]}  Bd5 {[%clk 0:02:04]} 20. Qb2 {[%clk 0:02:17]}  dxc5 {[%clk 0:02:01]} 21. bxc5 {[%clk 0:02:17]}  Bg7 {[%clk 0:01:59]} 22. Qxb5 {[%clk 0:02:15]}  Bc6 {[%clk 0:01:35]} 23. Qb4 {[%clk 0:02:13]}  Nd5 {[%clk 0:01:35]} 24. Qb2 {[%clk 0:02:12]}  f5 {[%clk 0:01:30]} 25. Bd6 {[%clk 0:02:06]}  a6 {[%clk 0:01:09]} 26. Nc2 {[%clk 0:02:04]}  Bb5 {[%clk 0:01:09]} 27. Rfe1 {[%clk 0:02:03]}  Nxc5 {[%clk 0:01:08]} 28. Ne3 {[%clk 0:02:00]}  Nxe3 {[%clk 0:00:49]} 29. Bxc5 {[%clk 0:02:00]}  Nd5 {[%clk 0:00:44]} 30. Nb3 {[%clk 0:01:58]}  Kh7 {[%clk 0:00:44]} 31. g3 {[%clk 0:01:58]}  Ba4 {[%clk 0:00:43]} 32. Rab1 {[%clk 0:01:54]}  Rb8 {[%clk 0:00:43]} 33. Qa2 {[%clk 0:01:54]}  Nc3 {[%clk 0:00:42]} 34. Qa1 {[%clk 0:01:53]}  Nxb1 {[%clk 0:00:42]} 35. Rxb1 {[%clk 0:01:54]}  Rxb3 {[%clk 0:00:41]} 36. Rc1 {[%clk 0:01:54]}  Qd5 {[%clk 0:00:38]} 37. Bf1 {[%clk 0:01:54]}  Bb5 {[%clk 0:00:36]} 38. Bg2 {[%clk 0:01:53]}  Rc8 {[%clk 0:00:33]} 39. a4 {[%clk 0:01:53]}  Rxc5 {[%clk 0:00:31]} 40. Qa2 {[%clk 0:01:49]}  Rxc1+ {[%clk 0:00:31]} 41. Bf1 {[%clk 0:01:49]}  Rxf1+ {[%clk 0:00:31]} 42. Kg2 {[%clk 0:01:49]}  e3+ {[%clk 0:00:31]} 43. Kh3 {[%clk 0:01:50]}  Rxf2 {[%clk 0:00:28]} 44. Qxf2 {[%clk 0:01:48]}  exf2 {[%clk 0:00:27]} 45. Kh4 {[%clk 0:01:48]}  Qe4+ {[%clk 0:00:26]} 46. Kh3 {[%clk 0:01:47]}  Qg4+ {[%clk 0:00:27]} 47. Kg2 {[%clk 0:01:48]}  f1=Q# {[%clk 0:00:28]} 0-1


[Site "https://www.chess.com"]

[Event "Titled Tuesday Blitz January 10 Early 2023"]
[White "Samaganova, Aleksandra"]
[Black "Novikova, Galina"]
[WhiteFideId "13800221"]
[BlackFideId "4157095"]
[WhiteElo "1856"]
[BlackElo "2073"]
[Result "0-1"]
[Round "08"]
[TimeControl "180+2"]
[Date "2023.01.10"]
[WhiteClock "0:00:11"]
[BlackClock "0:00:20"]

1. c4 {[%clk 0:02:58]}  e6 {[%clk 0:03:00]} 2. Nc3 {[%clk 0:02:51]}  f5 {[%clk 0:03:01]} 3. g3 {[%clk 0:02:49]}  Nf6 {[%clk 0:03:02]} 4. Bg2 {[%clk 0:02:49]}  Be7 {[%clk 0:03:03]} 5. e3 {[%clk 0:02:50]}  O-O {[%clk 0:03:04]} 6. Nge2 {[%clk 0:02:50]}  d6 {[%clk 0:03:05]} 7. d4 {[%clk 0:02:50]}  e5 {[%clk 0:03:06]} 8. O-O {[%clk 0:02:50]}  Nc6 {[%clk 0:03:02]} 9. Rb1 {[%clk 0:02:50]}  a5 {[%clk 0:03:01]} 10. a3 {[%clk 0:02:50]}  Qe8 {[%clk 0:02:59]} 11. b4 {[%clk 0:02:50]}  axb4 {[%clk 0:02:55]} 12. axb4 {[%clk 0:02:51]}  Qh5 {[%clk 0:02:54]} 13. dxe5 {[%clk 0:02:39]}  dxe5 {[%clk 0:02:44]} 14. Nd5 {[%clk 0:02:29]}  Bd8 {[%clk 0:02:38]} 15. Nxf6+ {[%clk 0:02:19]}  Bxf6 {[%clk 0:02:32]} 16. b5 {[%clk 0:02:13]}  Nd8 {[%clk 0:02:21]} 17. c5 {[%clk 0:02:01]}  Kh8 {[%clk 0:02:16]} 18. b6 {[%clk 0:01:19]}  c6 {[%clk 0:02:15]} 19. Qd6 {[%clk 0:01:07]}  Re8 {[%clk 0:01:56]} 20. Nc3 {[%clk 0:00:59]}  Nf7 {[%clk 0:01:52]} 21. Qd2 {[%clk 0:00:44]}  Be6 {[%clk 0:01:42]} 22. Qc2 {[%clk 0:00:38]}  Ng5 {[%clk 0:01:29]} 23. f3 {[%clk 0:00:32]}  Rad8 {[%clk 0:00:41]} 24. e4 {[%clk 0:00:19]}  fxe4 {[%clk 0:00:35]} 25. Nxe4 {[%clk 0:00:12]}  Nxe4 {[%clk 0:00:33]} 26. fxe4 {[%clk 0:00:13]}  Bh3 {[%clk 0:00:31]} 27. Be3 {[%clk 0:00:08]}  Bxg2 {[%clk 0:00:30]} 28. Kxg2 {[%clk 0:00:08]}  Bg5 {[%clk 0:00:26]} 29. Bg1 {[%clk 0:00:06]}  Qg6 {[%clk 0:00:23]} 30. Rbd1 {[%clk 0:00:05]}  h6 {[%clk 0:00:23]} 31. Rxd8 {[%clk 0:00:05]}  Rxd8 {[%clk 0:00:24]} 32. Rf2 {[%clk 0:00:04]}  Be3 {[%clk 0:00:23]} 33. Re2 {[%clk 0:00:04]}  Bxg1 {[%clk 0:00:23]} 34. Kxg1 {[%clk 0:00:05]}  Qe6 {[%clk 0:00:23]} 35. Kg2 {[%clk 0:00:05]}  Qe7 {[%clk 0:00:23]} 36. Rf2 {[%clk 0:00:04]}  Rd4 {[%clk 0:00:23]} 37. Re2 {[%clk 0:00:04]}  Qe8 {[%clk 0:00:23]} 38. h3 {[%clk 0:00:04]}  Qg6 {[%clk 0:00:24]} 39. h4 {[%clk 0:00:03]}  Qg4 {[%clk 0:00:24]} 40. Kh2 {[%clk 0:00:03]}  Qf3 {[%clk 0:00:23]} 41. Kh3 {[%clk 0:00:03]}  Rd3 {[%clk 0:00:24]} 42. Rg2 {[%clk 0:00:03]}  Qf1 {[%clk 0:00:23]} 43. Qf2 {[%clk 0:00:02]}  Qxf2 {[%clk 0:00:20]} 44. Rxf2 {[%clk 0:00:03]}  Rc3 {[%clk 0:00:20]} 45. Rf8+ {[%clk 0:00:03]}  Kh7 {[%clk 0:00:19]} 46. Rf7 {[%clk 0:00:04]}  Rxc5 {[%clk 0:00:19]} 47. Rxb7 {[%clk 0:00:05]}  Rc4 {[%clk 0:00:20]} 48. Rc7 {[%clk 0:00:05]}  Rxe4 {[%clk 0:00:18]} 49. Rxc6 {[%clk 0:00:05]}  Rb4 {[%clk 0:00:19]} 50. Re6 {[%clk 0:00:06]}  Rb5 {[%clk 0:00:18]} 51. h5 {[%clk 0:00:05]}  Kh8 {[%clk 0:00:17]} 52. Re8+ {[%clk 0:00:04]}  Kh7 {[%clk 0:00:18]} 53. Re6 {[%clk 0:00:05]}  Kg8 {[%clk 0:00:18]} 54. Rc6 {[%clk 0:00:04]}  Kf7 {[%clk 0:00:18]} 55. Rc7+ {[%clk 0:00:05]}  Kf6 {[%clk 0:00:19]} 56. b7 {[%clk 0:00:05]}  Kf5 {[%clk 0:00:17]} 57. Rxg7 {[%clk 0:00:04]}  e4 {[%clk 0:00:18]} 58. Rf7+ {[%clk 0:00:04]}  Ke5 {[%clk 0:00:18]} 59. Re7+ {[%clk 0:00:04]}  Kd4 {[%clk 0:00:18]} 60. Rd7+ {[%clk 0:00:04]}  Ke3 {[%clk 0:00:19]} 61. Kg4 {[%clk 0:00:04]}  Kf2 {[%clk 0:00:19]} 62. Re7 {[%clk 0:00:04]}  e3 {[%clk 0:00:19]} 63. Rf7+ {[%clk 0:00:05]}  Ke1 {[%clk 0:00:19]} 64. Re7 {[%clk 0:00:04]}  e2 {[%clk 0:00:20]} 65. Kf3 {[%clk 0:00:05]}  Kf1 {[%clk 0:00:19]} 66. Rxe2 {[%clk 0:00:02]}  Rb3+ {[%clk 0:00:19]} 67. Kg4 {[%clk 0:00:02]}  Kxe2 {[%clk 0:00:18]} 68. Kf5 {[%clk 0:00:03]}  Rxb7 {[%clk 0:00:19]} 69. Kg6 {[%clk 0:00:04]}  Rb6+ {[%clk 0:00:19]} 70. Kh7 {[%clk 0:00:03]}  Kf3 {[%clk 0:00:20]} 71. g4 {[%clk 0:00:03]}  Kxg4 {[%clk 0:00:20]} 72. Kh8 {[%clk 0:00:04]}  Kxh5 {[%clk 0:00:20]} 73. Kh7 {[%clk 0:00:05]}  Rb7+ {[%clk 0:00:19]} 74. Kh8 {[%clk 0:00:06]}  Kg5 {[%clk 0:00:19]} 75. Kg8 {[%clk 0:00:06]}  h5 {[%clk 0:00:20]} 76. Kf8 {[%clk 0:00:07]}  h4 {[%clk 0:00:21]} 77. Ke8 {[%clk 0:00:07]}  h3 {[%clk 0:00:21]} 78. Kd8 {[%clk 0:00:08]}  Rg7 {[%clk 0:00:21]} 79. Kc8 {[%clk 0:00:09]}  h2 {[%clk 0:00:21]} 80. Kd8 {[%clk 0:00:10]}  h1=Q {[%clk 0:00:20]} 81. Ke8 {[%clk 0:00:11]}  Qh8# {[%clk 0:00:20]} 0-1


[Site "https://www.chess.com"]

[Event "Titled Tuesday Blitz January 10 Early 2023"]
[White "Valle Maytin, Luis Enrique"]
[Black "Player, Edmund C"]
[WhiteFideId "3503666"]
[BlackFideId "406520"]
[WhiteElo "2241"]
[BlackElo "2204"]
[Result "1-0"]
[Round "08"]
[TimeControl "180+2"]
[Date "2023.01.10"]
[WhiteClock "0:00:34"]
[BlackClock "0:00:03"]

1. e4 {[%clk 0:02:51]}  e6 {[%clk 0:02:58]} 2. d4 {[%clk 0:02:51]}  d5 {[%clk 0:02:58]} 3. exd5 {[%clk 0:02:51]}  exd5 {[%clk 0:02:58]} 4. Nf3 {[%clk 0:02:51]}  Bd6 {[%clk 0:02:55]} 5. Bd3 {[%clk 0:02:52]}  Nc6 {[%clk 0:02:53]} 6. O-O {[%clk 0:02:42]}  Nge7 {[%clk 0:02:52]} 7. c4 {[%clk 0:02:33]}  dxc4 {[%clk 0:02:49]} 8. Bxc4 {[%clk 0:02:34]}  O-O {[%clk 0:02:46]} 9. Nc3 {[%clk 0:02:34]}  Bg4 {[%clk 0:02:44]} 10. Be3 {[%clk 0:02:34]}  Ng6 {[%clk 0:02:41]} 11. h3 {[%clk 0:02:34]}  Bf5 {[%clk 0:02:35]} 12. Rc1 {[%clk 0:02:29]}  Qd7 {[%clk 0:02:31]} 13. Nb5 {[%clk 0:02:26]}  Rad8 {[%clk 0:02:14]} 14. Nxd6 {[%clk 0:02:25]}  Qxd6 {[%clk 0:02:14]} 15. Qe2 {[%clk 0:02:12]}  Nb4 {[%clk 0:02:08]} 16. a3 {[%clk 0:02:10]}  Nc6 {[%clk 0:01:48]} 17. Rfd1 {[%clk 0:02:09]}  Nf4 {[%clk 0:01:38]} 18. Qd2 {[%clk 0:01:47]}  Nd5 {[%clk 0:01:34]} 19. Bg5 {[%clk 0:01:42]}  f6 {[%clk 0:01:20]} 20. Bh4 {[%clk 0:01:40]}  Ne7 {[%clk 0:01:14]} 21. Bg3 {[%clk 0:01:38]}  Qd7 {[%clk 0:01:13]} 22. Ba2 {[%clk 0:01:36]}  c6 {[%clk 0:01:13]} 23. Re1 {[%clk 0:01:30]}  Ng6 {[%clk 0:00:54]} 24. Qa5 {[%clk 0:01:22]}  a6 {[%clk 0:00:49]} 25. h4 {[%clk 0:01:13]}  Bg4 {[%clk 0:00:32]} 26. Nh2 {[%clk 0:01:10]}  Be6 {[%clk 0:00:32]} 27. h5 {[%clk 0:01:01]}  Nge7 {[%clk 0:00:29]} 28. Nf3 {[%clk 0:01:01]}  Bg4 {[%clk 0:00:24]} 29. h6 {[%clk 0:00:58]}  gxh6 {[%clk 0:00:19]} 30. Nd2 {[%clk 0:00:56]}  Kg7 {[%clk 0:00:16]} 31. Ne4 {[%clk 0:00:55]}  f5 {[%clk 0:00:12]} 32. Be5+ {[%clk 0:00:53]}  Kg6 {[%clk 0:00:11]} 33. Nc5 {[%clk 0:00:53]}  Qc8 {[%clk 0:00:07]} 34. Qd2 {[%clk 0:00:53]}  f4 {[%clk 0:00:05]} 35. f3 {[%clk 0:00:44]}  Bf5 {[%clk 0:00:05]} 36. Ne4 {[%clk 0:00:39]}  Ne3 {[%clk 0:00:03]} 37. Bxf4 {[%clk 0:00:34]} 1-0


[Site "https://www.chess.com"]

[Event "Titled Tuesday Blitz January 10 Early 2023"]
[White "Fernandez, Michael"]
[Black "Ciuffoletti, Paolo"]
[WhiteFideId "5803560"]
[BlackFideId "807630"]
[WhiteElo "2181"]
[BlackElo "2106"]
[Result "1-0"]
[Round "08"]
[TimeControl "180+2"]
[Date "2023.01.10"]
[WhiteClock "0:01:16"]
[BlackClock "0:00:01"]

1. d4 {[%clk 0:03:00]}  d5 {[%clk 0:02:58]} 2. c4 {[%clk 0:02:58]}  c6 {[%clk 0:02:57]} 3. Nc3 {[%clk 0:02:57]}  Nf6 {[%clk 0:02:57]} 4. cxd5 {[%clk 0:02:56]}  cxd5 {[%clk 0:02:57]} 5. f3 {[%clk 0:02:56]}  Nc6 {[%clk 0:02:53]} 6. e4 {[%clk 0:02:56]}  dxe4 {[%clk 0:02:19]} 7. d5 {[%clk 0:02:56]}  Nb8 {[%clk 0:02:16]} 8. fxe4 {[%clk 0:02:56]}  e6 {[%clk 0:02:10]} 9. Bb5+ {[%clk 0:02:55]}  Bd7 {[%clk 0:02:06]} 10. dxe6 {[%clk 0:02:56]}  fxe6 {[%clk 0:02:05]} 11. Bc4 {[%clk 0:02:56]}  Bb4 {[%clk 0:01:57]} 12. Qb3 {[%clk 0:02:55]}  Nc6 {[%clk 0:01:46]} 13. Bxe6 {[%clk 0:02:37]}  Nd4 {[%clk 0:01:37]} 14. Bf7+ {[%clk 0:02:37]}  Ke7 {[%clk 0:01:19]} 15. Qxb4+ {[%clk 0:02:36]}  Kxf7 {[%clk 0:01:20]} 16. Qxd4 {[%clk 0:02:36]}  Qe7 {[%clk 0:01:12]} 17. Bg5 {[%clk 0:02:29]}  Rad8 {[%clk 0:01:08]} 18. Nf3 {[%clk 0:02:24]}  Bb5 {[%clk 0:00:54]} 19. Bxf6 {[%clk 0:02:09]}  gxf6 {[%clk 0:00:37]} 20. Qf2 {[%clk 0:01:57]}  Rhe8 {[%clk 0:00:34]} 21. Ng5+ {[%clk 0:01:47]}  Kg7 {[%clk 0:00:31]} 22. Nxb5 {[%clk 0:01:48]}  fxg5 {[%clk 0:00:13]} 23. O-O {[%clk 0:01:46]}  Rf8 {[%clk 0:00:12]} 24. Qxa7 {[%clk 0:01:41]}  Qxe4 {[%clk 0:00:08]} 25. Rxf8 {[%clk 0:01:39]}  Rxf8 {[%clk 0:00:06]} 26. Nd6 {[%clk 0:01:32]}  Qe2 {[%clk 0:00:02]} 27. Qd4+ {[%clk 0:01:27]}  Kg8 {[%clk 0:00:01]} 28. Nxb7 {[%clk 0:01:16]} 1-0


[Site "https://www.chess.com"]

[Event "Titled Tuesday Blitz January 10 Early 2023"]
[White "Langner, Ladislav"]
[Black "Hartikainen, Jarmo"]
[WhiteFideId "300403"]
[BlackFideId "503134"]
[WhiteElo "2368"]
[BlackElo "2108"]
[Result "1-0"]
[Round "08"]
[TimeControl "180+2"]
[Date "2023.01.10"]
[WhiteClock "0:00:52"]
[BlackClock "0:00:11"]

1. e4 {[%clk 0:03:00]}  c5 {[%clk 0:02:59]} 2. c3 {[%clk 0:03:00]}  d5 {[%clk 0:02:58]} 3. exd5 {[%clk 0:03:00]}  Qxd5 {[%clk 0:02:59]} 4. d4 {[%clk 0:03:01]}  cxd4 {[%clk 0:02:59]} 5. cxd4 {[%clk 0:03:01]}  Nc6 {[%clk 0:03:00]} 6. Nf3 {[%clk 0:03:00]}  Bg4 {[%clk 0:03:00]} 7. Nc3 {[%clk 0:03:00]}  Bxf3 {[%clk 0:03:00]} 8. Nxd5 {[%clk 0:03:00]}  Bxd1 {[%clk 0:03:00]} 9. Nc7+ {[%clk 0:03:01]}  Kd8 {[%clk 0:02:59]} 10. Nxa8 {[%clk 0:03:02]}  Bh5 {[%clk 0:02:58]} 11. f3 {[%clk 0:02:44]}  Nf6 {[%clk 0:02:27]} 12. Bc4 {[%clk 0:02:05]}  e6 {[%clk 0:02:01]} 13. Bf4 {[%clk 0:02:05]}  Bb4+ {[%clk 0:01:50]} 14. Kf2 {[%clk 0:02:05]}  Ba5 {[%clk 0:01:47]} 15. a3 {[%clk 0:01:52]}  Kd7 {[%clk 0:01:19]} 16. b4 {[%clk 0:01:51]}  Bd8 {[%clk 0:01:17]} 17. d5 {[%clk 0:01:37]}  exd5 {[%clk 0:01:05]} 18. Rad1 {[%clk 0:01:35]}  g5 {[%clk 0:00:26]} 19. Bg3 {[%clk 0:01:26]}  Ke6 {[%clk 0:00:20]} 20. Bb3 {[%clk 0:01:15]}  Bg6 {[%clk 0:00:18]} 21. Rhe1+ {[%clk 0:01:11]}  Kd7 {[%clk 0:00:18]} 22. Bxd5 {[%clk 0:01:10]}  Nxd5 {[%clk 0:00:15]} 23. Rxd5+ {[%clk 0:01:10]}  Kc8 {[%clk 0:00:15]} 24. b5 {[%clk 0:01:06]}  Ne7 {[%clk 0:00:13]} 25. Rc1+ {[%clk 0:01:04]}  Bc7 {[%clk 0:00:12]} 26. Rxc7+ {[%clk 0:01:01]}  Kb8 {[%clk 0:00:12]} 27. Rcd7+ {[%clk 0:00:52]}  Kxa8 {[%clk 0:00:12]} 28. Rd8+ {[%clk 0:00:52]}  Rxd8 {[%clk 0:00:11]} 29. Rxd8+ {[%clk 0:00:52]} 1-0


[Site "https://www.chess.com"]

[Event "Titled Tuesday Blitz January 10 Early 2023"]
[White "Clawitter, Craig"]
[Black "Liu, Casper"]
[WhiteFideId "2023105"]
[BlackFideId "1454153"]
[WhiteElo "2050"]
[BlackElo "2278"]
[Result "0-1"]
[Round "08"]
[TimeControl "180+2"]
[Date "2023.01.10"]
[WhiteClock "0:00:01"]
[BlackClock "0:02:10"]

1. e4 {[%clk 0:02:54]}  e5 {[%clk 0:02:58]} 2. Nf3 {[%clk 0:02:53]}  Nc6 {[%clk 0:02:58]} 3. Bb5 {[%clk 0:02:52]}  a6 {[%clk 0:02:58]} 4. Ba4 {[%clk 0:02:53]}  Nf6 {[%clk 0:02:59]} 5. O-O {[%clk 0:02:53]}  b5 {[%clk 0:02:53]} 6. Bb3 {[%clk 0:02:52]}  d6 {[%clk 0:02:54]} 7. a4 {[%clk 0:02:42]}  Bb7 {[%clk 0:02:51]} 8. d3 {[%clk 0:02:26]}  Be7 {[%clk 0:02:49]} 9. Nc3 {[%clk 0:02:27]}  b4 {[%clk 0:02:46]} 10. Nd5 {[%clk 0:02:26]}  Nxd5 {[%clk 0:02:46]} 11. Bxd5 {[%clk 0:02:27]}  O-O {[%clk 0:02:46]} 12. Nd2 {[%clk 0:02:07]}  Na5 {[%clk 0:02:46]} 13. Bxb7 {[%clk 0:02:02]}  Nxb7 {[%clk 0:02:47]} 14. f4 {[%clk 0:02:02]}  exf4 {[%clk 0:02:47]} 15. Nc4 {[%clk 0:01:58]}  f5 {[%clk 0:02:44]} 16. exf5 {[%clk 0:01:45]}  d5 {[%clk 0:02:43]} 17. Ne5 {[%clk 0:01:40]}  Rxf5 {[%clk 0:02:43]} 18. Bxf4 {[%clk 0:01:36]}  Bd6 {[%clk 0:02:43]} 19. d4 {[%clk 0:01:33]}  Qf6 {[%clk 0:02:41]} 20. Bg3 {[%clk 0:00:48]}  Rf8 {[%clk 0:02:41]} 21. Qd3 {[%clk 0:00:39]}  Nc5 {[%clk 0:02:33]} 22. Qxf5 {[%clk 0:00:32]}  Qxf5 {[%clk 0:02:31]} 23. Rxf5 {[%clk 0:00:32]}  Rxf5 {[%clk 0:02:32]} 24. dxc5 {[%clk 0:00:14]}  Bxe5 {[%clk 0:02:32]} 25. Bxe5 {[%clk 0:00:14]}  Rxe5 {[%clk 0:02:33]} 26. Kf2 {[%clk 0:00:12]}  d4 {[%clk 0:02:33]} 27. Rd1 {[%clk 0:00:09]}  Rxc5 {[%clk 0:02:34]} 28. Rd2 {[%clk 0:00:09]}  Rd5 {[%clk 0:02:23]} 29. Ke2 {[%clk 0:00:09]}  c5 {[%clk 0:02:24]} 30. Kd3 {[%clk 0:00:09]}  Kf7 {[%clk 0:02:22]} 31. Kc4 {[%clk 0:00:09]}  Rf5 {[%clk 0:02:22]} 32. Re2 {[%clk 0:00:08]}  h5 {[%clk 0:02:18]} 33. g3 {[%clk 0:00:07]}  g5 {[%clk 0:02:16]} 34. a5 {[%clk 0:00:06]}  h4 {[%clk 0:02:12]} 35. gxh4 {[%clk 0:00:06]}  gxh4 {[%clk 0:02:13]} 36. b3 {[%clk 0:00:04]}  h3 {[%clk 0:02:13]} 37. Kd3 {[%clk 0:00:02]}  Rf3+ {[%clk 0:02:12]} 38. Kc4 {[%clk 0:00:02]}  Rc3+ {[%clk 0:02:12]} 39. Kd5 {[%clk 0:00:03]}  Kf6 {[%clk 0:02:09]} 40. Kc6 {[%clk 0:00:03]}  Kg5 {[%clk 0:02:08]} 41. Kb6 {[%clk 0:00:02]}  Kf4 {[%clk 0:02:09]} 42. Kxa6 {[%clk 0:00:02]}  Kf3 {[%clk 0:02:10]} 43. Rd2 {[%clk 0:00:01]}  Ke3 {[%clk 0:02:10]} 0-1


[Site "https://www.chess.com"]

[Event "Titled Tuesday Blitz January 10 Early 2023"]
[White "Sargissyan, Sargis"]
[Black "Kovacevic, Radmila"]
[WhiteFideId "13303210"]
[BlackFideId "933171"]
[WhiteElo "2234"]
[BlackElo "2106"]
[Result "0-1"]
[Round "08"]
[TimeControl "180+2"]
[Date "2023.01.10"]
[WhiteClock "0:00:09"]
[BlackClock "0:00:42"]

1. e4 {[%clk 0:03:00]}  e5 {[%clk 0:02:57]} 2. Nf3 {[%clk 0:03:00]}  d5 {[%clk 0:02:55]} 3. exd5 {[%clk 0:02:52]}  e4 {[%clk 0:02:56]} 4. Qe2 {[%clk 0:02:52]}  Nf6 {[%clk 0:02:55]} 5. Nc3 {[%clk 0:02:51]}  Be7 {[%clk 0:02:55]} 6. Nxe4 {[%clk 0:02:48]}  O-O {[%clk 0:02:55]} 7. d3 {[%clk 0:02:45]}  Nxd5 {[%clk 0:02:54]} 8. c4 {[%clk 0:02:31]}  Nb6 {[%clk 0:02:48]} 9. Be3 {[%clk 0:02:01]}  f5 {[%clk 0:02:41]} 10. Nc3 {[%clk 0:02:01]}  Bb4 {[%clk 0:02:40]} 11. O-O-O {[%clk 0:01:59]}  Bxc3 {[%clk 0:02:39]} 12. bxc3 {[%clk 0:01:59]}  Re8 {[%clk 0:02:35]} 13. Qd2 {[%clk 0:01:51]}  Na4 {[%clk 0:02:26]} 14. Qc2 {[%clk 0:01:43]}  Bd7 {[%clk 0:02:22]} 15. Bg5 {[%clk 0:01:32]}  Qc8 {[%clk 0:02:22]} 16. d4 {[%clk 0:01:29]}  h6 {[%clk 0:02:15]} 17. Be3 {[%clk 0:01:23]}  b6 {[%clk 0:02:09]} 18. Ne5 {[%clk 0:01:18]}  Qa6 {[%clk 0:01:48]} 19. c5 {[%clk 0:00:58]}  b5 {[%clk 0:01:47]} 20. Bd3 {[%clk 0:00:51]}  Rxe5 {[%clk 0:01:34]} 21. dxe5 {[%clk 0:00:50]}  Qe6 {[%clk 0:01:33]} 22. Bxf5 {[%clk 0:00:40]}  Qxf5 {[%clk 0:01:32]} 23. Qxf5 {[%clk 0:00:40]}  Bxf5 {[%clk 0:01:32]} 24. Rd8+ {[%clk 0:00:40]}  Kf7 {[%clk 0:01:30]} 25. Bd4 {[%clk 0:00:40]}  Be4 {[%clk 0:01:14]} 26. f3 {[%clk 0:00:35]}  Bc6 {[%clk 0:01:06]} 27. Re1 {[%clk 0:00:33]}  Na6 {[%clk 0:01:01]} 28. e6+ {[%clk 0:00:31]}  Ke7 {[%clk 0:01:00]} 29. Rxa8 {[%clk 0:00:29]}  Bxa8 {[%clk 0:01:01]} 30. Bxg7 {[%clk 0:00:29]}  N6xc5 {[%clk 0:01:00]} 31. Bxh6 {[%clk 0:00:22]}  Nd3+ {[%clk 0:01:00]} 32. Kd2 {[%clk 0:00:21]}  Nxe1 {[%clk 0:01:00]} 33. Kxe1 {[%clk 0:00:22]}  Nxc3 {[%clk 0:00:59]} 34. f4 {[%clk 0:00:10]}  Kxe6 {[%clk 0:00:58]} 35. g4 {[%clk 0:00:10]}  Nxa2 {[%clk 0:00:57]} 36. f5+ {[%clk 0:00:10]}  Kf6 {[%clk 0:00:56]} 37. Kf2 {[%clk 0:00:10]}  b4 {[%clk 0:00:52]} 38. Bf8 {[%clk 0:00:09]}  a5 {[%clk 0:00:47]} 39. Kg3 {[%clk 0:00:10]}  a4 {[%clk 0:00:47]} 40. Kf4 {[%clk 0:00:10]}  Kf7 {[%clk 0:00:43]} 41. Bc5 {[%clk 0:00:09]}  b3 {[%clk 0:00:43]} 42. Bd4 {[%clk 0:00:08]}  a3 {[%clk 0:00:43]} 43. g5 {[%clk 0:00:08]}  b2 {[%clk 0:00:43]} 44. g6+ {[%clk 0:00:09]}  Kg8 {[%clk 0:00:42]} 45. f6 {[%clk 0:00:09]}  Bd5 {[%clk 0:00:42]} 0-1


[Site "https://www.chess.com"]